bitfinex-derivatives/quotes_BTCF0:USTF0_20220102
["timestamp","ask_amount","ask_price","bid_price","bid_amount"]
[1641146959018,0.35124369,47268.0,47265.0,1.32286542]
[1641146959219,0.35124369,47268.0,47267.0,0.18]
[1641146961519,0.35124369,47268.0,47267.0,0.372]
[1641146961720,0.35124369,47268.0,47267.0,1.369809]
[1641146961920,0.35124369,47268.0,47267.0,1.249809]
[1641146962621,0.35124369,47268.0,47267.0,1.057809]
[1641146963123,0.35124369,47268.0,47267.0,1.237809]
[1641146963321,0.35124369,47268.0,47267.0,1.429809]
[1641146963537,0.35124369,47268.0,47267.0,0.372]
[1641146963740,0.35124369,47268.0,47267.0,1.429809]
[1641146964738,0.35124369,47268.0,47267.0,1.237809]
[1641146965339,0.35124369,47269.0,47267.0,1.429809]
[1641146965940,0.35124369,47268.0,47267.0,1.429809]
[1641146966140,0.35124369,47268.0,47267.0,1.249809]
[1641146966638,0.35124369,47268.0,47267.0,1.057809]
[1641146967240,0.35124369,47268.0,47266.0,1.057809]
[1641146967539,0.35124369,47268.0,47265.0,1.32286542]
[1641146967540,0.35124369,47268.0,47267.0,1.249809]
[1641146967746,0.35124369,47268.0,47267.0,0.192]
[1641146967942,0.58564177,47270.0,47267.0,1.249809]
[1641146968142,0.58564177,47269.0,47267.0,1.249809]
[1641146968540,0.58564177,47269.0,47267.0,1.057809]
[1641146968941,0.58564177,47269.0,47266.0,1.057798]
[1641146969142,0.58564177,47269.0,47268.0,1.057798]
[1641146969342,0.58564177,47269.0,47267.0,0.19]
[1641146969543,0.58564177,47269.0,47267.0,1.39189237]
[1641146969743,0.58564177,47269.0,47268.0,1.057786]
[1641146969942,0.58564177,47269.0,47268.0,1.20189237]
[1641146970144,0.58564177,47269.0,47268.0,2.25967837]
[1641146971343,0.58564177,47269.0,47268.0,2.44967837]
[1641146971544,0.58564177,47269.0,47268.0,2.46169795]
[1641146972343,0.5912894,47269.0,47268.0,2.46169795]
[1641146972645,0.5912894,47269.0,47268.0,2.27169795]
[1641146973447,0.5912894,47269.0,47268.0,2.46169795]
[1641146974351,0.00564763,47269.0,47268.0,1.25980558]
[1641146974650,0.00564763,47269.0,47268.0,1.06980558]
[1641146975351,0.00564763,47269.0,47268.0,1.25980558]
[1641146976852,0.00564763,47269.0,47268.0,1.06980558]
[1641146977452,0.00564763,47269.0,47268.0,1.25980558]
[1641146978855,0.00564763,47269.0,47268.0,1.06980558]
[1641146979354,0.5912894,47269.0,47268.0,1.26080558]
[1641146980854,0.13295128,47269.0,47268.0,1.26080558]
[1641146981454,0.13295128,47269.0,47268.0,1.25980558]
[1641146982456,0.95238811,47269.0,47268.0,1.25980558]
[1641146982855,0.95238811,47269.0,47268.0,1.06980558]
[1641146983457,0.95238811,47269.0,47268.0,1.25980558]
[1641146984258,0.95238811,47269.0,47268.0,0.20201958]
[1641146984658,0.95238811,47269.0,47268.0,0.01201958]
[1641146985261,1.03981811,47269.0,47266.0,0.01201958]
[1641146985460,1.03981811,47269.0,47268.0,0.17898042]
[1641146985663,1.03417048,47269.0,47268.0,0.17898042]
[1641146985961,0.21473365,47269.0,47268.0,0.17898042]
[1641146986862,0.21473365,47269.0,47264.0,1.60353676]
[1641146987361,0.21473365,47269.0,47265.0,0.01202127]
[1641146987761,0.12730365,47268.0,47265.0,0.01202127]
[1641146987962,1.17142837,47267.0,47265.0,0.01202127]
[1641146988561,1.29873202,47267.0,47265.0,0.01202127]
[1641146989463,1.29873202,47267.0,47265.0,0.19602127]
[1641146989866,0.12730365,47266.0,47265.0,0.19602127]
[1641146990268,0.12730365,47266.0,47265.0,0.184]
[1641146990466,0.12730365,47266.0,47265.0,0.19602131]
[1641146990868,0.12730365,47266.0,47265.0,0.01202131]
[1641146991469,0.12730365,47266.0,47265.0,0.19902131]
[1641146991668,0.18,47269.0,47265.0,0.19902131]
[1641146992067,0.18,47269.0,47265.0,0.187]
[1641146992768,1.17303252,47267.0,47264.0,1.60353676]
[1641146993371,1.17303252,47267.0,47265.0,0.0120209]
[1641146994770,0.82004538,47266.0,47265.0,0.0120209]
[1641146995570,0.82004538,47266.0,47265.0,0.1990209]
[1641146996273,0.94224722,47266.0,47265.0,0.1990209]
[1641146996973,0.94224722,47266.0,47265.0,0.0120209]
[1641146997573,0.94224722,47266.0,47265.0,0.2010209]
[1641146997774,0.58509255,47266.0,47265.0,0.2010209]
[1641146998973,0.58509255,47266.0,47265.0,0.0120209]
[1641146999474,0.58509255,47266.0,47265.0,0.2100209]
[1641147000076,0.35092132,47267.0,47265.0,0.2100209]
[1641147000680,0.35092132,47267.0,47266.0,0.0120209]
[1641147001279,0.35092132,47267.0,47265.0,0.0120209]
[1641147001479,0.35092132,47267.0,47266.0,0.2080209]
[1641147003281,0.18,47268.0,47266.0,0.2080209]
[1641147003481,0.18,47268.0,47266.0,0.1850209]
[1641147003482,0.12712027,47267.0,47266.0,0.1850209]
[1641147003881,0.12712027,47267.0,47266.0,0.173]
[1641147004684,0.94716565,47267.0,47266.0,0.173]
[1641147004897,1.12716565,47267.0,47264.0,1.60353676]
[1641147005294,1.12716565,47267.0,47265.0,0.01202132]
[1641147005495,0.30712027,47266.0,47265.0,0.01202132]
[1641147005995,0.12712027,47266.0,47265.0,0.01202132]
[1641147007095,0.82004538,47267.0,47265.0,0.01202132]
[1641147007496,0.82004538,47267.0,47265.0,0.19502132]
[1641147007898,0.82004538,47268.0,47266.0,0.01202132]
[1641147008297,0.18,47267.0,47265.0,0.183]
[1641147008702,1.12784439,47267.0,47265.0,0.183]
[1641147008900,1.12784439,47267.0,47264.0,1.60353676]
[1641147009397,1.00004538,47267.0,47265.0,0.01202108]
[1641147009601,0.82004538,47267.0,47265.0,0.01202108]
[1641147011102,0.82004538,47268.0,47265.0,0.01202108]
[1641147011500,0.82004538,47268.0,47265.0,0.19502108]
[1641147011901,0.82004538,47268.0,47266.0,0.01202108]
[1641147013409,0.82004538,47268.0,47265.0,0.01202108]
[1641147013410,0.12767401,47267.0,47265.0,0.01202108]
[1641147013610,0.12767401,47267.0,47266.0,0.176]
[1641147014011,0.12767401,47267.0,47266.0,0.1880209]
[1641147014210,0.82004538,47268.0,47266.0,0.1880209]
[1641147014810,0.82004538,47268.0,47264.0,1.60353676]
[1641147015511,0.34908803,47265.0,47264.0,1.77953676]
[1641147016112,0.35473938,47265.0,47264.0,1.77953676]
[1641147016914,0.35473938,47265.0,47264.0,1.60353676]
[1641147017514,0.35473938,47265.0,47264.0,1.79653676]
[1641147019017,0.35473938,47265.0,47264.0,1.60353676]
[1641147019215,0.00565135,47265.0,47264.0,2.80536189]
[1641147019615,0.00565135,47265.0,47264.0,2.99836189]
[1641147021016,0.00565135,47265.0,47264.0,2.80536189]
[1641147021319,0.13306585,47265.0,47264.0,2.80536189]
[1641147021518,0.13306585,47265.0,47264.0,2.99536189]
[1641147022818,0.13306585,47265.0,47264.0,2.80536189]
[1641147023520,0.13306585,47265.0,47264.0,2.99736189]
[1641147024920,0.13306585,47265.0,47264.0,1.60353676]
[1641147025522,0.13306585,47265.0,47264.0,1.79553676]
[1641147026321,1.30609837,47265.0,47264.0,1.79553676]
[1641147026624,1.30609837,47265.0,47264.0,1.65520109]
[1641147026823,1.3272597,47265.0,47264.0,1.517885]
[1641147027022,1.3272597,47265.0,47264.0,0.843885]
[1641147027223,1.3272597,47265.0,47263.0,1.20182513]
[1641147027521,0.09075706,47264.0,47263.0,1.20182513]
[1641147027922,3.02937132,47264.0,47263.0,1.20182513]
[1641147028323,3.33120728,47264.0,47263.0,1.20182513]
[1641147028522,3.33220728,47264.0,47263.0,1.20182513]
[1641147028723,3.45962178,47264.0,47263.0,1.20182513]
[1641147028923,3.45962178,47264.0,47253.0,1.20182513]
[1641147029127,0.18,47254.0,47253.0,1.20182513]
[1641147029722,0.18665135,47254.0,47253.0,1.38182513]
[1641147029923,0.36665135,47254.0,47253.0,1.38182513]
[1641147030123,1.35069071,47254.0,47253.0,0.18]
[1641147030323,1.48537503,47254.0,47253.0,0.18]
[1641147031025,1.61844481,47254.0,47253.0,0.19202368]
[1641147031525,1.43744481,47254.0,47253.0,0.01202368]
[1641147031727,0.44040545,47254.0,47253.0,1.39884881]
[1641147032327,1.25575047,47254.0,47253.0,0.19702368]
[1641147032927,0.27340545,47254.0,47253.0,0.01202368]
[1641147033128,0.27340545,47254.0,47253.0,1.21458018]
[1641147033530,0.27340545,47254.0,47253.0,1.2025565]
[1641147033729,0.45640545,47254.0,47253.0,0.184]
[1641147033932,0.45640545,47254.0,47253.0,0.19602368]
[1641147034436,1.62044481,47254.0,47253.0,0.19602368]
[1641147035529,1.31003031,47254.0,47253.0,0.01202368]
[1641147035829,0.32199095,47254.0,47253.0,0.19702368]
[1641147037032,0.14599095,47254.0,47253.0,0.01202368]
[1641147037632,0.14599095,47254.0,47253.0,0.192]
[1641147037834,0.14599095,47254.0,47253.0,0.20402368]
[1641147038949,0.14599095,47254.0,47253.0,0.01202368]
[1641147039555,0.14599095,47254.0,47246.0,0.01202368]
[1641147039751,0.14599095,47254.0,47253.0,0.20302368]
[1641147039950,0.14033567,47254.0,47253.0,0.191]
[1641147040150,0.14033567,47254.0,47253.0,0.20302368]
[1641147041650,0.14033567,47254.0,47253.0,0.39502368]
[1641147042750,1.07922341,47254.0,47253.0,0.39502368]
[1641147042952,1.07922341,47254.0,47253.0,0.20402368]
[1641147043154,1.07922341,47254.0,47253.0,0.01202368]
[1641147043553,1.07922341,47254.0,47251.0,0.01202368]
[1641147043753,1.07922341,47254.0,47253.0,0.192]
[1641147043953,1.07922341,47254.0,47253.0,0.20402368]
[1641147044154,0.26537952,47254.0,47253.0,1.40658157]
[1641147044958,0.26537952,47254.0,47253.0,1.21458157]
[1641147045656,0.26537952,47254.0,47253.0,1.40658157]
[1641147046958,0.26537952,47254.0,47253.0,1.21458157]
[1641147047857,0.26537952,47254.0,47253.0,1.40658157]
[1641147049058,0.26537952,47254.0,47253.0,1.21458157]
[1641147049658,0.26537952,47254.0,47253.0,1.40658157]
[1641147051661,0.26537952,47254.0,47253.0,1.59858157]
[1641147052869,0.26537952,47254.0,47253.0,1.40658157]
[1641147053062,0.26537952,47254.0,47253.0,1.21458157]
[1641147053663,0.26537952,47254.0,47253.0,1.40658157]
[1641147055064,0.27103433,47254.0,47253.0,1.21458157]
[1641147055664,0.27103433,47254.0,47253.0,1.40658157]
[1641147056965,0.27103433,47254.0,47253.0,0.01202368]
[1641147057164,1.08615176,47254.0,47253.0,0.01202368]
[1641147057765,1.08615176,47254.0,47253.0,0.196]
[1641147057968,1.08615176,47254.0,47253.0,0.20802368]
[1641147058665,0.96110791,47254.0,47253.0,0.20802368]
[1641147058866,0.14599048,47254.0,47253.0,0.20802368]
[1641147059066,0.72792269,47254.0,47253.0,0.01202368]
[1641147059666,0.72792269,47254.0,47253.0,0.20802368]
[1641147060471,0.14599048,47254.0,47253.0,0.20802368]
[1641147060668,0.27166212,47254.0,47253.0,0.20802368]
[1641147060968,0.27166212,47254.0,47253.0,0.01202368]
[1641147061668,0.27166212,47254.0,47253.0,0.20802368]
[1641147065068,0.27166212,47254.0,47253.0,0.01202368]
[1641147065672,0.27166212,47254.0,47253.0,0.20802368]
[1641147066472,0.72827475,47254.0,47253.0,0.20802368]
[1641147067073,0.72827475,47254.0,47253.0,1.21428796]
[1641147067774,0.72827475,47254.0,47253.0,1.41028796]
[1641147069175,0.72827475,47254.0,47253.0,1.21428796]
[1641147069777,0.72827475,47254.0,47253.0,1.41028796]
[1641147070976,0.72827475,47254.0,47253.0,1.21428796]
[1641147071777,0.72827475,47254.0,47253.0,1.41028796]
[1641147072979,0.72827475,47254.0,47253.0,1.21428796]
[1641147073784,0.72827475,47254.0,47253.0,1.41028796]
[1641147075580,0.72827475,47254.0,47253.0,1.21428796]
[1641147075782,0.72827475,47254.0,47253.0,1.40728796]
[1641147077082,1.2804433,47261.0,47253.0,1.47663196]
[1641147077382,0.05955,47320.0,47253.0,1.47663196]
[1641147077383,1.9596,47286.0,47260.0,0.98]
[1641147077584,1.1618358,47274.0,47273.0,0.18]
[1641147077782,1.9596,47286.0,47273.0,0.29296922]
[1641147077984,3.54371615,47292.0,47279.0,0.12]
[1641147078185,1.71671615,47292.0,47279.0,0.12]
[1641147078587,0.00038906,47281.0,47280.0,0.06]
[1641147078784,0.00038906,47281.0,47280.0,0.39049029]
[1641147078983,0.00038906,47281.0,47280.0,0.53082596]
[1641147079587,1.52869197,47286.0,47280.0,0.53082596]
[1641147079785,1.52869197,47286.0,47284.0,0.06]
[1641147079986,1.52869197,47286.0,47284.0,0.12933]
[1641147080186,0.14033567,47292.0,47284.0,0.12933]
[1641147080187,0.14033567,47292.0,47285.0,0.324865]
[1641147080388,0.14033567,47296.0,47287.0,0.18]
[1641147080590,0.14033567,47296.0,47290.0,0.18]
[1641147080787,0.14033567,47296.0,47288.0,0.22423864]
[1641147080788,0.14033567,47296.0,47288.0,0.54225064]
[1641147080990,0.14033567,47296.0,47291.0,0.06662559]
[1641147081893,0.14033567,47296.0,47291.0,0.25862559]
[1641147082088,0.14033567,47296.0,47292.0,0.31648]
[1641147082691,1.41196252,47294.0,47292.0,0.31648]
[1641147083791,1.41196252,47294.0,47292.0,0.50748]
[1641147084990,1.41196252,47295.0,47292.0,1.04804448]
[1641147085190,1.41196252,47295.0,47292.0,0.85704448]
[1641147085892,1.41196252,47295.0,47292.0,0.72956448]
[1641147086092,1.41196252,47295.0,47292.0,0.54956448]
[1641147086295,1.41196252,47295.0,47292.0,0.72956448]
[1641147086792,1.41196252,47295.0,47292.0,0.54956448]
[1641147086996,1.55229819,47296.0,47292.0,0.36056448]
[1641147087193,1.55229819,47296.0,47292.0,0.54056448]
[1641147087394,1.67229819,47296.0,47292.0,0.36056448]
[1641147087593,1.55229819,47296.0,47292.0,0.36056448]
[1641147087795,1.41196252,47295.0,47292.0,0.46856448]
[1641147089095,0.26033567,47296.0,47292.0,0.36056448]
[1641147089296,0.18,47295.0,47289.0,0.14033567]
[1641147090498,0.12,47294.0,47289.0,0.14033567]
[1641147091502,0.06,47292.0,47289.0,0.14033567]
[1641147091702,0.12,47294.0,47289.0,0.14033567]
[1641147091904,0.302,47294.0,47289.0,0.30233567]
[1641147092104,0.182,47294.0,47289.0,0.30233567]
[1641147092305,0.362,47294.0,47289.0,0.30233567]
[1641147092706,0.182,47294.0,47289.0,0.30233567]
[1641147092906,0.362,47294.0,47289.0,0.30233567]
[1641147093308,0.18,47294.0,47289.0,0.14033567]
[1641147093507,0.14033567,47296.0,47289.0,0.14033567]
[1641147093709,0.14033567,47296.0,47290.0,0.55177185]
[1641147093912,0.183,47294.0,47290.0,0.86716585]
[1641147094211,0.183,47294.0,47290.0,0.55177185]
[1641147094410,0.183,47294.0,47291.0,0.12]
[1641147095013,0.183,47294.0,47290.0,0.39291406]
[1641147095216,0.00428163,47293.0,47290.0,0.02114221]
[1641147095414,0.00428163,47293.0,47289.0,0.14033567]
[1641147095613,0.00428163,47295.0,47289.0,0.14033567]
[1641147095813,0.00428163,47292.0,47290.0,0.19]
[1641147096016,0.00428163,47294.0,47290.0,0.19]
[1641147096417,0.00428163,47291.0,47290.0,0.19]
[1641147096615,0.00428163,47293.0,47290.0,0.19]
[1641147096817,0.00428163,47291.0,47290.0,0.19]
[1641147097018,0.14033567,47296.0,47290.0,0.19]
[1641147097019,0.00428163,47292.0,47290.0,0.19]
[1641147097215,0.00428163,47291.0,47290.0,0.317193]
[1641147097617,0.00428163,47291.0,47289.0,0.14033567]
[1641147097816,0.00428163,47295.0,47290.0,0.195]
[1641147098016,0.14033567,47296.0,47290.0,0.195]
[1641147098516,0.14033567,47296.0,47291.0,0.318805]
[1641147098921,0.14033567,47296.0,47290.0,0.195]
[1641147099116,0.14033567,47296.0,47289.0,0.14033567]
[1641147099816,0.28133567,47296.0,47289.0,0.32633567]
[1641147101120,0.28133567,47296.0,47289.0,0.14033567]
[1641147101320,0.14033567,47296.0,47289.0,0.14033567]
[1641147101722,0.14033567,47296.0,47290.0,0.317011]
[1641147104022,0.14033567,47296.0,47293.0,0.36056448]
[1641147104023,0.09013256,47295.0,47293.0,0.36056448]
[1641147105623,1.49153699,47295.0,47292.0,0.36056448]
[1641147105824,1.49153699,47295.0,47293.0,0.188]
[1641147107025,1.49153699,47295.0,47288.0,0.84131369]
[1641147107026,0.18,47294.0,47288.0,0.84131369]
[1641147107223,0.18,47289.0,47288.0,0.84131369]
[1641147107425,0.40281567,47289.0,47288.0,0.84131369]
[1641147107624,0.42396643,47289.0,47288.0,0.84131369]
[1641147107826,0.60996643,47289.0,47288.0,0.84131369]
[1641147108025,0.61096643,47289.0,47288.0,0.84131369]
[1641147108426,0.70109899,47289.0,47288.0,0.84131369]
[1641147108626,0.70109899,47289.0,47281.0,0.16435323]
[1641147108827,0.70009899,47289.0,47281.0,0.16435323]
[1641147109025,0.12,47284.0,47281.0,0.16435323]
[1641147109229,0.33409899,47289.0,47281.0,0.16435323]
[1641147109726,0.12,47284.0,47281.0,0.16435323]
[1641147110125,1.40637373,47287.0,47281.0,0.16435323]
[1641147110625,0.09013256,47283.0,47281.0,0.16435323]
[1641147111125,1.40637373,47287.0,47281.0,0.16435323]
[1641147111926,1.59237373,47287.0,47281.0,0.16435323]
[1641147112329,0.186,47287.0,47281.0,1.00566692]
[1641147113127,0.00428514,47286.0,47281.0,1.00566692]
[1641147113628,0.0944177,47286.0,47282.0,0.84131369]
[1641147113829,0.001,47283.0,47282.0,0.84131369]
[1641147114128,0.00528514,47283.0,47282.0,0.84131369]
[1641147114628,0.001,47283.0,47282.0,0.84131369]
[1641147115128,0.00528514,47283.0,47282.0,0.84131369]
[1641147115329,0.09113256,47283.0,47281.0,0.16435323]
[1641147115529,0.09013256,47283.0,47281.0,0.16435323]
[1641147115828,0.2844177,47283.0,47281.0,0.16435323]
[1641147116028,0.4044177,47283.0,47281.0,0.16435323]
[1641147116229,0.1554177,47282.0,47280.0,1.20187114]
[1641147116429,0.12,47281.0,47280.0,1.20187114]
[1641147117031,0.12428514,47281.0,47280.0,1.20187114]
[1641147117230,0.12428514,47281.0,47278.0,0.84142615]
[1641147117231,0.12428514,47281.0,47279.0,0.60101868]
[1641147117432,0.26462081,47281.0,47279.0,0.60101868]
[1641147117830,0.45362081,47281.0,47279.0,0.60101868]
[1641147118032,0.00428514,47280.0,47279.0,0.60101868]
[1641147118432,0.00428514,47280.0,47278.0,0.60101868]
[1641147119034,0.00428514,47280.0,47278.0,0.84142615]
[1641147119934,0.19228514,47280.0,47278.0,0.84142615]
[1641147120335,0.00428514,47279.0,47277.0,1.20187114]
[1641147121734,0.00428514,47280.0,47277.0,1.20187114]
[1641147121937,0.00428514,47278.0,47277.0,1.20187114]
[1641147122335,0.19028514,47279.0,47276.0,1.20187114]
[1641147122537,0.00428514,47278.0,47276.0,1.29026114]
[1641147122837,0.00428514,47278.0,47277.0,0.0120187]
[1641147123836,0.00428514,47280.0,47277.0,0.0120187]
[1641147124035,0.19228514,47278.0,47277.0,0.0120187]
[1641147124336,0.188,47278.0,47277.0,0.0120187]
[1641147124537,0.19228514,47278.0,47277.0,1.21388984]
[1641147125439,0.00428514,47278.0,47277.0,0.0120187]
[1641147125639,0.58929823,47278.0,47277.0,0.0120187]
[1641147125938,0.78229823,47278.0,47277.0,0.0120187]
[1641147126139,0.193,47278.0,47277.0,0.0120187]
[1641147126340,0.19728514,47278.0,47277.0,0.0120187]
[1641147127344,0.00428514,47278.0,47277.0,0.0120187]
[1641147127942,0.176,47278.0,47277.0,0.0120187]
[1641147128143,0.18028514,47278.0,47277.0,0.0120187]
[1641147128344,8.514e-05,47278.0,47277.0,0.0120187]
[1641147128643,1.28908269,47284.0,47277.0,0.0218127]
[1641147128842,1.28908269,47285.0,47282.0,0.18]
[1641147129243,1.28908269,47285.0,47283.0,0.328558]
[1641147129442,1.5467094,47289.0,47283.0,0.328558]
[1641147129643,1.42323135,47289.0,47284.0,0.02114491]
[1641147129842,1.1662688,47286.0,47284.0,0.03316154]
[1641147130245,1.1662688,47286.0,47285.0,0.50934463]
[1641147130444,1.1672688,47286.0,47285.0,0.50934463]
[1641147130642,1.1662688,47286.0,47285.0,0.50934463]
[1641147131945,1.1662688,47288.0,47285.0,0.70334463]
[1641147132345,1.1662688,47288.0,47287.0,0.18]
[1641147132645,1.1662688,47288.0,47287.0,0.08081]
[1641147132848,1.25640396,47288.0,47287.0,0.09282663]
[1641147133047,0.09013516,47288.0,47287.0,0.40873963]
[1641147133448,0.09013516,47288.0,47287.0,0.09282663]
[1641147133951,0.09013516,47288.0,47287.0,0.48560766]
[1641147134547,0.09013516,47288.0,47287.0,1.68743104]
[1641147135148,1.30660447,47289.0,47287.0,1.67541441]
[1641147135351,0.34988599,47288.0,47287.0,0.68131236]
[1641147135951,0.34988599,47288.0,47287.0,0.87431236]
[1641147136550,0.14033567,47289.0,47287.0,0.87431236]
[1641147137053,0.09014397,47288.0,47287.0,0.27381]
[1641147137452,0.09014397,47288.0,47287.0,0.08081]
[1641147137653,0.09014397,47288.0,47285.0,0.36033238]
[1641147137856,0.09014397,47288.0,47284.0,0.60050236]
[1641147137857,0.09014397,47288.0,47286.0,0.36033238]
[1641147138055,0.09014397,47288.0,47287.0,0.193]
[1641147138855,0.90542147,47288.0,47287.0,0.193]
[1641147139355,0.90542147,47288.0,47286.0,0.36033238]
[1641147139555,0.09014397,47288.0,47286.0,0.36033238]
[1641147139956,0.09014397,47288.0,47286.0,0.55333238]
[1641147140156,0.27014397,47288.0,47286.0,0.55333238]
[1641147141258,0.09014397,47287.0,47286.0,0.193]
[1641147141458,0.09014397,47287.0,47284.0,0.36033238]
[1641147141860,0.27014397,47287.0,47284.0,0.36033238]
[1641147142060,1.42041277,47287.0,47284.0,0.184]
[1641147143260,0.09014397,47286.0,47283.0,0.36033238]
[1641147143460,0.814555,47285.0,47283.0,0.36033238]
[1641147143668,0.14033567,47284.0,47283.0,0.36033238]
[1641147143967,0.14033567,47284.0,47283.0,0.55433238]
[1641147144171,0.14033567,47284.0,47283.0,0.79450236]
[1641147144368,0.14033567,47284.0,47283.0,0.80651989]
[1641147145270,0.14403545,47284.0,47283.0,0.80651989]
[1641147145473,0.14403545,47284.0,47283.0,0.61251989]
[1641147145674,0.49322883,47284.0,47283.0,0.80125298]
[1641147146074,0.49322883,47284.0,47283.0,0.99425298]
[1641147146370,0.35289316,47284.0,47283.0,0.99425298]
[1641147147472,0.35289316,47284.0,47283.0,0.80125298]
[1641147148074,0.35289316,47284.0,47283.0,0.99625298]
[1641147149273,0.35289316,47284.0,47283.0,0.80125298]
[1641147150074,0.35289316,47284.0,47283.0,0.99825298]
[1641147151377,0.35289316,47284.0,47283.0,0.80125298]
[1641147151675,0.35289316,47284.0,47283.0,0.20075062]
[1641147152079,0.35289316,47284.0,47283.0,0.39775062]
[1641147153080,0.00369978,47284.0,47283.0,0.39775062]
[1641147153278,0.90839798,47284.0,47283.0,0.20075062]
[1641147153478,0.9046982,47284.0,47283.0,0.20075062]
[1641147153779,0.90839798,47284.0,47283.0,0.20075062]
[1641147153980,0.90839798,47284.0,47283.0,0.39675062]
[1641147154380,0.81825478,47284.0,47283.0,0.39675062]
[1641147154984,0.09384298,47284.0,47283.0,0.39675062]
[1641147155885,0.09384298,47284.0,47283.0,0.20075062]
[1641147156084,0.35315858,47284.0,47283.0,0.39575062]
[1641147156883,0.00369978,47284.0,47283.0,0.39575062]
[1641147157383,0.00369978,47284.0,47283.0,0.20075062]
[1641147157685,0.35307956,47284.0,47283.0,0.20075062]
[1641147158183,0.35307956,47284.0,47283.0,0.39575062]
[1641147159184,0.35307956,47284.0,47283.0,1.59713418]
[1641147159585,0.35307956,47284.0,47283.0,1.40213418]
[1641147160188,0.35307956,47284.0,47283.0,1.59713418]
[1641147161388,0.35307956,47284.0,47283.0,1.40213418]
[1641147162188,0.35307956,47284.0,47283.0,1.59813418]
[1641147163388,0.35307956,47284.0,47283.0,1.40213418]
[1641147164089,0.35307956,47284.0,47283.0,1.59813418]
[1641147165391,0.35307956,47284.0,47283.0,1.40213418]
[1641147166094,0.35307956,47284.0,47283.0,1.59613418]
[1641147167396,0.35307956,47284.0,47283.0,1.40213418]
[1641147168097,0.35307956,47284.0,47283.0,1.59513418]
[1641147168395,0.00369978,47284.0,47283.0,1.59513418]
[1641147169296,0.00369978,47284.0,47283.0,0.39375062]
[1641147169699,0.00369978,47284.0,47283.0,0.20075062]
[1641147170200,0.00369978,47284.0,47283.0,0.39675062]
[1641147171501,0.00369978,47284.0,47283.0,0.20075062]
[1641147172102,0.00369978,47284.0,47283.0,0.39575062]
[1641147173304,0.00369978,47284.0,47283.0,1.59709361]
[1641147173806,0.00369978,47284.0,47283.0,1.40209361]
[1641147174004,0.00369978,47284.0,47283.0,0.20075062]
[1641147174206,0.00369978,47284.0,47283.0,0.39475062]
[1641147175406,0.00369978,47284.0,47283.0,0.20075062]
[1641147176108,0.00369978,47284.0,47283.0,0.39575062]
[1641147176509,0.35307956,47285.0,47283.0,0.39575062]
[1641147176711,0.00369978,47284.0,47283.0,0.39575062]
[1641147177109,0.00369978,47284.0,47283.0,0.38373309]
[1641147177321,0.00369978,47284.0,47283.0,0.195]
[1641147177622,0.00369978,47284.0,47281.0,0.32033567]
[1641147177823,0.00369978,47284.0,47281.0,0.14033567]
[1641147178324,0.00369978,47284.0,47282.0,0.315131]
[1641147179726,0.00369978,47284.0,47281.0,0.14033567]
[1641147179926,0.00369978,47284.0,47281.0,1.46155439]
[1641147180128,0.00369978,47284.0,47282.0,0.194]
[1641147180326,0.00369978,47284.0,47282.0,0.509681]
[1641147180727,0.34937978,47283.0,47282.0,0.194]
[1641147181125,0.35307956,47283.0,47282.0,0.194]
[1641147181928,0.00369978,47283.0,47282.0,0.194]
[1641147182127,0.00369978,47283.0,47282.0,0.389]
[1641147182328,0.00369978,47284.0,47282.0,0.389]
[1641147182727,0.34937978,47285.0,47282.0,0.389]
[1641147182728,0.00369978,47283.0,47282.0,0.389]
[1641147183428,0.00369978,47284.0,47282.0,0.389]
[1641147183630,0.00369978,47283.0,47281.0,0.14033567]
[1641147184029,0.00369978,47284.0,47281.0,0.14033567]
[1641147184229,0.00369978,47282.0,47281.0,0.33533567]
[1641147184630,0.00369978,47283.0,47281.0,0.33533567]
[1641147185234,0.00369978,47283.0,47281.0,0.41906567]
[1641147185434,0.00369978,47283.0,47281.0,0.22406567]
[1641147186136,0.00369978,47283.0,47281.0,0.41906567]
[1641147187637,0.00369978,47283.0,47281.0,0.22406567]
[1641147187836,0.00369978,47283.0,47281.0,0.14033567]
[1641147188137,0.00369978,47283.0,47281.0,0.33533567]
[1641147189441,0.00369978,47283.0,47281.0,0.14033567]
[1641147190239,0.00369978,47283.0,47281.0,0.33533567]
[1641147191540,0.00369978,47283.0,47281.0,0.14033567]
[1641147192241,0.00369978,47283.0,47282.0,0.01201663]
[1641147192742,0.00369978,47283.0,47282.0,0.19706293]
[1641147194242,0.00369978,47283.0,47282.0,0.39106293]
[1641147195146,0.00369978,47283.0,47282.0,0.70619093]
[1641147195644,0.00369978,47283.0,47282.0,0.39106293]
[1641147196247,0.00369978,47283.0,47282.0,0.39206293]
[1641147197549,0.00369978,47283.0,47282.0,0.19706293]
[1641147197947,0.00369978,47283.0,47282.0,0.01201663]
[1641147198147,0.00369978,47283.0,47282.0,0.20701663]
[1641147198948,0.35047778,47284.0,47282.0,0.39392917]
[1641147199347,0.00369978,47283.0,47282.0,0.39392917]
[1641147199548,0.00369978,47283.0,47282.0,0.18691254]
[1641147200249,0.00369978,47283.0,47282.0,0.38191254]
[1641147200449,0.00469978,47283.0,47282.0,0.38191254]
[1641147200651,0.06555978,47283.0,47282.0,0.38191254]
[1641147200850,0.24555978,47283.0,47282.0,0.38191254]
[1641147201654,0.24555978,47283.0,47282.0,0.18691254]
[1641147202054,0.24555978,47283.0,47282.0,1.50858514]
[1641147202356,0.43855978,47283.0,47282.0,1.50858514]
[1641147202955,0.66905265,47283.0,47282.0,0.36062881]
[1641147203655,0.66905265,47283.0,47282.0,2.881e-05]
[1641147204055,0.66905265,47283.0,47280.0,0.60104801]
[1641147204256,0.001,47281.0,47280.0,0.60104801]
[1641147204455,0.181,47281.0,47280.0,0.60104801]
[1641147204656,0.18469978,47281.0,47280.0,0.60104801]
[1641147204957,0.27485698,47281.0,47280.0,0.60104801]
[1641147205158,0.27485698,47281.0,47278.0,0.84146721]
[1641147205159,0.27485698,47281.0,47279.0,0.60104801]
[1641147205360,0.001,47280.0,47279.0,0.60104801]
[1641147205559,0.00469978,47280.0,47279.0,0.60104801]
[1641147205760,0.42585572,47280.0,47276.0,1.20209602]
[1641147205960,0.181,47277.0,47272.0,1.3216726]
[1641147206163,0.181,47273.0,47269.0,1.44182466]
[1641147206360,0.18021162,47270.0,47269.0,1.44182466]
[1641147206660,0.20137164,47270.0,47269.0,1.44182466]
[1641147206860,0.48574276,47270.0,47269.0,1.44182466]
[1641147207462,0.48574276,47270.0,47265.0,0.35601388]
[1641147207659,0.18,47266.0,47265.0,0.35601388]
[1641147207859,0.18,47266.0,47259.0,1.44182466]
[1641147208060,0.18,47260.0,47259.0,1.44182466]
[1641147208260,0.2624,47260.0,47259.0,1.44182466]
[1641147209160,0.2624,47260.0,47257.0,1.44182466]
[1641147209359,0.08610264,47260.0,47257.0,1.44182466]